[Event "Late-Titled-Tuesday-Blitz-February-06-2024"]
[Site "Chess.com"]
[Date "2024.02.06"]
[Round "2"]
[White "Sjakkerntobi"]
[Black "alphienothere"]
[Result "0-1"]
[WhiteElo "2482"]
[BlackElo "2236"]
[TimeControl "180+1"]
[EndTime "14:18:17 PST"]
[Termination "alphienothere won by resignation"]

1. e4 {[%clk 0:03:00.9]} 1... c6 {[%clk 0:02:52.8]} 2. Nc3 {[%clk 0:03:00.3]}
2... d5 {[%clk 0:02:48.4]} 3. Nf3 {[%clk 0:03:00.1]} 3... dxe4 {[%clk
0:02:45.6]} 4. Nxe4 {[%clk 0:03:01]} 4... Bf5 {[%clk 0:02:43.1]} 5. Ng3 {[%clk
0:03:00.4]} 5... Bg4 {[%clk 0:02:40.1]} 6. Bc4 {[%clk 0:02:58.6]} 6... e6 {[%clk
0:02:35.4]} 7. h3 {[%clk 0:02:52.7]} 7... Bxf3 {[%clk 0:02:32.4]} 8. Qxf3 {[%clk
0:02:53.6]} 8... Nf6 {[%clk 0:02:29.2]} 9. c3 {[%clk 0:02:52.8]} 9... Nbd7
{[%clk 0:02:25.6]} 10. d4 {[%clk 0:02:52.4]} 10... Bd6 {[%clk 0:02:23.2]} 11.
Bd3 {[%clk 0:02:52.3]} 11... O-O {[%clk 0:02:20.9]} 12. Bg5 {[%clk 0:02:45.7]}
12... Qc7 {[%clk 0:02:11.2]} 13. Nh5 {[%clk 0:02:37.2]} 13... Nxh5 {[%clk
0:02:08.4]} 14. Qxh5 {[%clk 0:02:38.1]} 14... h6 {[%clk 0:02:05.1]} 15. Bxh6
{[%clk 0:02:07.4]} 15... gxh6 {[%clk 0:02:03]} 16. Qxh6 {[%clk 0:02:08.3]} 16...
f5 {[%clk 0:01:59.8]} 17. Qxe6+ {[%clk 0:02:03.2]} 17... Kg7 {[%clk 0:01:57.6]}
18. O-O-O {[%clk 0:01:59.3]} 18... Rae8 {[%clk 0:01:42.5]} 19. Qb3 {[%clk
0:01:59.1]} 19... Nf6 {[%clk 0:01:38.7]} 20. g4 {[%clk 0:01:58]} 20... Qf7
{[%clk 0:01:35.3]} 21. Bc4 {[%clk 0:01:56.8]} 21... Nd5 {[%clk 0:01:32.7]} 22.
gxf5 {[%clk 0:01:55.4]} 22... Qxf5 {[%clk 0:01:28.7]} 23. Rhg1+ {[%clk
0:01:55.4]} 23... Kf6 {[%clk 0:01:20.7]} 24. Bd3 {[%clk 0:01:54.6]} 24... Qf4+
{[%clk 0:01:18.6]} 25. Kb1 {[%clk 0:01:54]} 25... Rg8 {[%clk 0:01:10.5]} 26. c4
{[%clk 0:01:17.7]} 26... Rxg1 {[%clk 0:01:07.2]} 27. Rxg1 {[%clk 0:01:18.6]}
27... Nb4 {[%clk 0:01:02.9]} 28. Rg6+ {[%clk 0:01:05.9]} 28... Ke7 {[%clk
0:01:02.7]} 29. c5 {[%clk 0:01:06]} 29... Nxd3 {[%clk 0:00:56.9]} 30. cxd6+
{[%clk 0:00:45.3]} 30... Kd8 {[%clk 0:00:50.5]} 31. Qxd3 {[%clk 0:00:43.2]}
31... Re1+ {[%clk 0:00:47.6]} 32. Kc2 {[%clk 0:00:43.4]} 32... Qxf2+ {[%clk
0:00:45.6]} 33. Kc3 {[%clk 0:00:36.9]} 33... Re3 {[%clk 0:00:45.5]} 34. Rg8+
{[%clk 0:00:35.7]} 34... Kd7 {[%clk 0:00:44.6]} 35. Rg7+ {[%clk 0:00:36.1]}
35... Kxd6 {[%clk 0:00:45]} 36. Rg6+ {[%clk 0:00:36.8]} 36... Kc7 {[%clk
0:00:44.9]} 37. Rg7+ {[%clk 0:00:32.5]} 37... Kb6 {[%clk 0:00:45.2]} 38. Qxe3
{[%clk 0:00:27.1]} 38... Qxe3+ {[%clk 0:00:46.1]} 39. Kc2 {[%clk 0:00:28]} 39...
Qe2+ {[%clk 0:00:44.9]} 40. Kc3 {[%clk 0:00:28.1]} 40... Qe3+ {[%clk 0:00:45.1]}
41. Kc2 {[%clk 0:00:28.6]} 41... Qf2+ {[%clk 0:00:45.7]} 42. Kc3 {[%clk
0:00:29]} 42... Qf3+ {[%clk 0:00:46.1]} 43. Kc2 {[%clk 0:00:29.1]} 43... Qxh3
{[%clk 0:00:46.8]} 44. Re7 {[%clk 0:00:22.5]} 44... Qf5+ {[%clk 0:00:47.1]} 45.
Kc3 {[%clk 0:00:22.5]} 45... Qf3+ {[%clk 0:00:47.3]} 46. Kc2 {[%clk 0:00:23]}
46... Qg2+ {[%clk 0:00:46.6]} 47. Kc3 {[%clk 0:00:23.1]} 47... Qh3+ {[%clk
0:00:46.6]} 48. Kc2 {[%clk 0:00:23.4]} 48... Qh4 {[%clk 0:00:46.2]} 49. Re2
{[%clk 0:00:22]} 49... Qxd4 {[%clk 0:00:46.3]} 50. Rd2 {[%clk 0:00:22.2]} 50...
Qc4+ {[%clk 0:00:46.5]} 51. Kd1 {[%clk 0:00:20.5]} 51... Qxa2 {[%clk 0:00:46.6]}
52. Rc2 {[%clk 0:00:21]} 52... Qb1+ {[%clk 0:00:46.8]} 53. Kd2 {[%clk
0:00:21.5]} 53... Qxc2+ {[%clk 0:00:47]} 54. Kxc2 {[%clk 0:00:22.4]} 54... Kb5
{[%clk 0:00:47.7]} 55. Kb3 {[%clk 0:00:23.3]} 55... a5 {[%clk 0:00:48.3]} 56.
Kc3 {[%clk 0:00:24.2]} 56... b6 {[%clk 0:00:48.9]} 57. Kb3 {[%clk 0:00:25.1]}
57... c5 {[%clk 0:00:49.1]} 58. Ka3 {[%clk 0:00:25.6]} 58... Kc4 {[%clk
0:00:49.4]} 59. Ka4 {[%clk 0:00:25.2]} 59... Kd3 {[%clk 0:00:49.7]} 60. Kb5
{[%clk 0:00:25]} 60... Kc2 {[%clk 0:00:50.3]} 61. Kxb6 {[%clk 0:00:25]} 61...
Kxb2 {[%clk 0:00:49.8]} 62. Kxc5 {[%clk 0:00:24.3]} 62... Kb3 {[%clk 0:00:50]}
63. Kd4 {[%clk 0:00:23.9]} 63... a4 {[%clk 0:00:50.9]} 64. Kd3 {[%clk
0:00:24.8]} 64... a3 {[%clk 0:00:51.6]} 65. Kd2 {[%clk 0:00:25.7]} 65... Kb2
{[%clk 0:00:52.1]} 66. Ke3 {[%clk 0:00:26.6]} 66... a2 {[%clk 0:00:52.9]} 67.
Ke4 {[%clk 0:00:27.5]} 67... a1=Q {[%clk 0:00:53.8]} 68. Kf5 {[%clk 0:00:28.4]}
68... Qe1 {[%clk 0:00:54]} 0-1

[Event "Late-Titled-Tuesday-Blitz-February-06-2024"]
[Site "Chess.com"]
[Date "2024.02.06"]
[Round "2"]
[White "Yeritsyaan"]
[Black "h4parah5"]
[Result "0-1"]
[WhiteElo "2611"]
[BlackElo "2973"]
[TimeControl "180+1"]
[EndTime "14:18:23 PST"]
[Termination "h4parah5 won by resignation"]

1. e4 {[%clk 0:03:00.2]} 1... c5 {[%clk 0:02:58.5]} 2. Nf3 {[%clk 0:02:59.9]}
2... e6 {[%clk 0:02:59]} 3. Nc3 {[%clk 0:02:58.7]} 3... a6 {[%clk 0:02:58.6]} 4.
d4 {[%clk 0:02:58.4]} 4... cxd4 {[%clk 0:02:59.5]} 5. Nxd4 {[%clk 0:02:59]} 5...
b5 {[%clk 0:03:00.1]} 6. Qf3 {[%clk 0:02:55.6]} 6... Bb7 {[%clk 0:02:57.9]} 7.
Bd3 {[%clk 0:02:54.9]} 7... Nc6 {[%clk 0:02:54.8]} 8. Nxc6 {[%clk 0:02:53.5]}
8... Bxc6 {[%clk 0:02:55.7]} 9. O-O {[%clk 0:02:52.6]} 9... Qb8 {[%clk
0:02:52.1]} 10. Bf4 {[%clk 0:02:48.3]} 10... Bd6 {[%clk 0:02:47.1]} 11. Bxd6
{[%clk 0:02:48.5]} 11... Qxd6 {[%clk 0:02:48]} 12. Rad1 {[%clk 0:02:47.7]} 12...
Qe5 {[%clk 0:02:42.3]} 13. Rfe1 {[%clk 0:02:46.5]} 13... Nf6 {[%clk 0:02:39.9]}
14. Qg3 {[%clk 0:02:31.3]} 14... Qxg3 {[%clk 0:02:33.4]} 15. hxg3 {[%clk
0:02:32.2]} 15... e5 {[%clk 0:02:27.3]} 16. a3 {[%clk 0:02:27.3]} 16... d6
{[%clk 0:02:24.9]} 17. f3 {[%clk 0:02:25.6]} 17... h5 {[%clk 0:02:22.8]} 18. Be2
{[%clk 0:02:23.6]} 18... Ke7 {[%clk 0:02:21.6]} 19. Rd2 {[%clk 0:02:23.8]} 19...
Rhd8 {[%clk 0:02:11.3]} 20. Red1 {[%clk 0:02:20.2]} 20... Rab8 {[%clk
0:02:09.1]} 21. Kf2 {[%clk 0:02:17.4]} 21... g5 {[%clk 0:01:51.3]} 22. Ke3
{[%clk 0:02:13.9]} 22... Rb6 {[%clk 0:01:49.2]} 23. b4 {[%clk 0:02:08.8]} 23...
Bb7 {[%clk 0:01:46.7]} 24. f4 {[%clk 0:01:52.5]} 24... Rc8 {[%clk 0:01:42.4]}
25. Nd5+ {[%clk 0:01:43.5]} 25... Bxd5 {[%clk 0:01:40.1]} 26. exd5 {[%clk
0:01:44.4]} 26... gxf4+ {[%clk 0:01:34.9]} 27. gxf4 {[%clk 0:01:45.3]} 27...
Rc3+ {[%clk 0:01:33.7]} 28. Rd3 {[%clk 0:01:45.7]} 28... Nxd5+ {[%clk
0:01:32.7]} 29. Ke4 {[%clk 0:01:39]} 29... Rxd3 {[%clk 0:01:25.9]} 30. Rxd3
{[%clk 0:01:24.9]} 30... Nxf4 {[%clk 0:01:24.3]} 31. Rd2 {[%clk 0:01:25]} 31...
d5+ {[%clk 0:01:12.7]} 32. Kf5 {[%clk 0:01:21.1]} 32... Rf6+ {[%clk 0:01:09.2]}
33. Kxe5 {[%clk 0:01:20]} 33... Nxe2 {[%clk 0:01:08.4]} 34. Rxd5 {[%clk
0:01:16.1]} 34... Nf4 {[%clk 0:00:56.2]} 35. Rc5 {[%clk 0:01:10.1]} 35... Ne6
{[%clk 0:00:53.9]} 36. Rc6 {[%clk 0:01:06.5]} 36... Rf2 {[%clk 0:00:48]} 37. c4
{[%clk 0:00:52.8]} 37... Re2+ {[%clk 0:00:46.1]} 38. Kd5 {[%clk 0:00:51.3]}
38... bxc4 {[%clk 0:00:40.7]} 39. Rxc4 {[%clk 0:00:46.7]} 39... Rxg2 {[%clk
0:00:34.9]} 40. a4 {[%clk 0:00:43.8]} 40... Rd2+ {[%clk 0:00:32.5]} 41. Ke5
{[%clk 0:00:37.1]} 41... f6+ {[%clk 0:00:30.4]} 42. Kf5 {[%clk 0:00:36.7]} 42...
Rd5+ {[%clk 0:00:27.3]} 43. Kg6 {[%clk 0:00:35.7]} 43... Rd4 {[%clk 0:00:27.7]}
44. Rc6 {[%clk 0:00:32.3]} 44... h4 {[%clk 0:00:27.4]} 45. Rxa6 {[%clk
0:00:31.7]} 45... h3 {[%clk 0:00:27.1]} 46. Ra7+ {[%clk 0:00:32]} 46... Rd7
{[%clk 0:00:26.6]} 47. Ra8 {[%clk 0:00:31.1]} 47... Nf8+ {[%clk 0:00:24.2]} 0-1

[Event "Late-Titled-Tuesday-Blitz-February-06-2024"]
[Site "Chess.com"]
[Date "2024.02.06"]
[Round "2"]
[White "Chemim21"]
[Black "winniethepooh04"]
[Result "0-1"]
[WhiteElo "2236"]
[BlackElo "2511"]
[TimeControl "180+1"]
[EndTime "14:18:26 PST"]
[Termination "winniethepooh04 won on time"]

1. e4 {[%clk 0:03:00.9]} 1... e6 {[%clk 0:03:00.1]} 2. d4 {[%clk 0:02:59.8]}
2... d5 {[%clk 0:03:00.6]} 3. exd5 {[%clk 0:02:59.7]} 3... exd5 {[%clk
0:03:01.5]} 4. Nf3 {[%clk 0:02:59.4]} 4... Nf6 {[%clk 0:03:01.4]} 5. c4 {[%clk
0:02:58.3]} 5... Be7 {[%clk 0:03:01.4]} 6. Nc3 {[%clk 0:02:57.6]} 6... O-O
{[%clk 0:03:01.5]} 7. Be3 {[%clk 0:02:41.7]} 7... c6 {[%clk 0:02:59.6]} 8. Qb3
{[%clk 0:02:38.6]} 8... h6 {[%clk 0:02:39.8]} 9. h3 {[%clk 0:02:34.5]} 9... dxc4
{[%clk 0:02:39.8]} 10. Bxc4 {[%clk 0:02:33.6]} 10... Nbd7 {[%clk 0:02:40.2]} 11.
Ne5 {[%clk 0:02:16.3]} 11... Nxe5 {[%clk 0:02:35.3]} 12. dxe5 {[%clk 0:02:16.3]}
12... Nd7 {[%clk 0:02:35.2]} 13. e6 {[%clk 0:02:02.9]} 13... fxe6 {[%clk
0:02:34.9]} 14. Bxe6+ {[%clk 0:02:02.8]} 14... Kh8 {[%clk 0:02:34.1]} 15. O-O-O
{[%clk 0:01:57.3]} 15... Qc7 {[%clk 0:02:30.4]} 16. Qc4 {[%clk 0:01:41.7]} 16...
Nb6 {[%clk 0:02:00.1]} 17. Qe4 {[%clk 0:01:34.2]} 17... Bf6 {[%clk 0:01:58.1]}
18. Bxc8 {[%clk 0:01:23.4]} 18... Raxc8 {[%clk 0:01:59]} 19. Bd4 {[%clk
0:01:18.2]} 19... Rce8 {[%clk 0:01:58.5]} 20. Qd3 {[%clk 0:01:15.8]} 20... Rd8
{[%clk 0:01:57]} 21. Qe4 {[%clk 0:00:57.2]} 21... Rde8 {[%clk 0:01:20.1]} 22.
Qg4 {[%clk 0:00:54]} 22... Bxd4 {[%clk 0:01:15.3]} 23. Qxd4 {[%clk 0:00:50.3]}
23... Rd8 {[%clk 0:01:09.8]} 24. Qc5 {[%clk 0:00:46.1]} 24... Qf4+ {[%clk
0:01:05.1]} 25. Kb1 {[%clk 0:00:45.7]} 25... Rxd1+ {[%clk 0:01:03.9]} 26. Rxd1
{[%clk 0:00:44.1]} 26... Qxf2 {[%clk 0:01:00.5]} 27. Qxf2 {[%clk 0:00:38]} 27...
Rxf2 {[%clk 0:01:01.4]} 28. Rd8+ {[%clk 0:00:37.8]} 28... Kh7 {[%clk 0:01:01.1]}
29. Rb8 {[%clk 0:00:37.7]} 29... Rf7 {[%clk 0:00:54]} 30. Ne4 {[%clk 0:00:36.2]}
30... Nc4 {[%clk 0:00:41.6]} 31. b3 {[%clk 0:00:28.3]} 31... Rf1+ {[%clk
0:00:33.3]} 32. Kc2 {[%clk 0:00:27.4]} 32... Ne3+ {[%clk 0:00:33.9]} 33. Kd3
{[%clk 0:00:26.6]} 33... Nxg2 {[%clk 0:00:32.4]} 34. Rxb7 {[%clk 0:00:25.2]}
34... Nf4+ {[%clk 0:00:32.7]} 35. Ke3 {[%clk 0:00:19.7]} 35... Nxh3 {[%clk
0:00:31]} 36. Rxa7 {[%clk 0:00:17.8]} 36... Re1+ {[%clk 0:00:28.1]} 37. Kd3
{[%clk 0:00:15.9]} 37... Nf4+ {[%clk 0:00:28.2]} 38. Kd4 {[%clk 0:00:14.7]}
38... h5 {[%clk 0:00:26.1]} 39. a4 {[%clk 0:00:12.6]} 39... h4 {[%clk
0:00:25.4]} 40. a5 {[%clk 0:00:08.4]} 40... h3 {[%clk 0:00:20]} 41. Ng5+ {[%clk
0:00:08.2]} 41... Kg6 {[%clk 0:00:20.4]} 42. Nxh3 {[%clk 0:00:09.1]} 42... Nxh3
{[%clk 0:00:21]} 43. a6 {[%clk 0:00:08.1]} 43... Nf4 {[%clk 0:00:20.3]} 44. Rc7
{[%clk 0:00:02.9]} 44... Rd1+ {[%clk 0:00:19.5]} 0-1

[Event "Late-Titled-Tuesday-Blitz-February-06-2024"]
[Site "Chess.com"]
[Date "2024.02.06"]
[Round "2"]
[White "Petukhov_Dmitry"]
[Black "vovachesss"]
[Result "0-1"]
[WhiteElo "2549"]
[BlackElo "2834"]
[TimeControl "180+1"]
[EndTime "14:18:28 PST"]
[Termination "vovachesss won on time"]

1. e4 {[%clk 0:03:00.1]} 1... c5 {[%clk 0:02:59.7]} 2. c3 {[%clk 0:02:59.8]}
2... d5 {[%clk 0:02:57.2]} 3. exd5 {[%clk 0:03:00.1]} 3... Qxd5 {[%clk
0:02:58.1]} 4. d4 {[%clk 0:03:00.9]} 4... Nf6 {[%clk 0:02:58.6]} 5. Nf3 {[%clk
0:03:00.9]} 5... e6 {[%clk 0:02:59]} 6. Be2 {[%clk 0:03:00.9]} 6... Nc6 {[%clk
0:02:56]} 7. O-O {[%clk 0:02:58.8]} 7... Be7 {[%clk 0:02:56.1]} 8. Be3 {[%clk
0:02:59]} 8... cxd4 {[%clk 0:02:55.4]} 9. cxd4 {[%clk 0:02:59.9]} 9... O-O
{[%clk 0:02:55.8]} 10. Nc3 {[%clk 0:03:00.1]} 10... Qd6 {[%clk 0:02:56.2]} 11.
Qb3 {[%clk 0:03:00.2]} 11... Qb4 {[%clk 0:02:51.9]} 12. Qxb4 {[%clk 0:02:49.8]}
12... Nxb4 {[%clk 0:02:51.5]} 13. Rac1 {[%clk 0:02:46.6]} 13... b6 {[%clk
0:02:20.9]} 14. Ne5 {[%clk 0:02:40.5]} 14... Bb7 {[%clk 0:02:20.1]} 15. a3
{[%clk 0:02:40.6]} 15... Nbd5 {[%clk 0:02:19.9]} 16. Bf3 {[%clk 0:02:36.5]}
16... Rac8 {[%clk 0:02:08.9]} 17. Bg5 {[%clk 0:02:32.3]} 17... Nxc3 {[%clk
0:01:27.3]} 18. Bxb7 {[%clk 0:01:32.5]} 18... Ne2+ {[%clk 0:01:26.6]} 19. Kh1
{[%clk 0:01:32.9]} 19... Rb8 {[%clk 0:00:46.8]} 20. Rce1 {[%clk 0:00:51.7]}
20... Rxb7 {[%clk 0:00:42.5]} 21. Rxe2 {[%clk 0:00:51.4]} 21... Rc8 {[%clk
0:00:38.3]} 22. h3 {[%clk 0:00:49.5]} 22... Nd5 {[%clk 0:00:36.5]} 23. Bxe7
{[%clk 0:00:45.9]} 23... Rxe7 {[%clk 0:00:37.4]} 24. f4 {[%clk 0:00:40.4]} 24...
g6 {[%clk 0:00:35.1]} 25. g4 {[%clk 0:00:40.4]} 25... Rec7 {[%clk 0:00:34.9]}
26. f5 {[%clk 0:00:39.1]} 26... exf5 {[%clk 0:00:24.9]} 27. gxf5 {[%clk
0:00:40]} 27... f6 {[%clk 0:00:19]} 28. Nd3 {[%clk 0:00:31]} 28... g5 {[%clk
0:00:19.9]} 29. Rff2 {[%clk 0:00:26.7]} 29... Kf7 {[%clk 0:00:19.5]} 30. h4
{[%clk 0:00:22.3]} 30... h6 {[%clk 0:00:18.1]} 31. Re6 {[%clk 0:00:22.1]} 31...
Rd7 {[%clk 0:00:16.3]} 32. Rfe2 {[%clk 0:00:20.7]} 32... Ne7 {[%clk 0:00:11.5]}
33. Nb4 {[%clk 0:00:16.7]} 33... Nxf5 {[%clk 0:00:10.3]} 34. d5 {[%clk
0:00:03.9]} 34... Ng3+ {[%clk 0:00:09.9]} 35. Kg2 {[%clk 0:00:03.6]} 35... Nxe2
{[%clk 0:00:10.8]} 36. Rxe2 {[%clk 0:00:04.5]} 36... a5 {[%clk 0:00:08.1]} 0-1

[Event "Late-Titled-Tuesday-Blitz-February-06-2024"]
[Site "Chess.com"]
[Date "2024.02.06"]
[Round "2"]
[White "Chempiblinka"]
[Black "JonasEilenberg"]
[Result "1-0"]
[WhiteElo "2351"]
[BlackElo "2521"]
[TimeControl "180+1"]
[EndTime "14:18:28 PST"]
[Termination "Chempiblinka won by resignation"]

1. Nf3 {[%clk 0:03:00.9]} 1... d5 {[%clk 0:03:00]} 2. g3 {[%clk 0:03:01.1]} 2...
Bg4 {[%clk 0:02:49.1]} 3. Bg2 {[%clk 0:02:53]} 3... Nd7 {[%clk 0:02:49.7]} 4.
O-O {[%clk 0:02:51.2]} 4... c6 {[%clk 0:02:49.4]} 5. c4 {[%clk 0:02:50.8]} 5...
e6 {[%clk 0:02:49.4]} 6. cxd5 {[%clk 0:02:50.1]} 6... exd5 {[%clk 0:02:49.5]} 7.
d3 {[%clk 0:02:47.6]} 7... Ngf6 {[%clk 0:02:49.5]} 8. Nc3 {[%clk 0:02:43.9]}
8... Be7 {[%clk 0:02:49.6]} 9. h3 {[%clk 0:02:43.9]} 9... Bh5 {[%clk 0:02:49.5]}
10. e4 {[%clk 0:02:42.4]} 10... O-O {[%clk 0:02:42.6]} 11. Qc2 {[%clk
0:02:14.8]} 11... dxe4 {[%clk 0:02:04.5]} 12. dxe4 {[%clk 0:02:15.7]} 12... Bxf3
{[%clk 0:01:57.2]} 13. Bxf3 {[%clk 0:02:14.3]} 13... Ne5 {[%clk 0:01:58.1]} 14.
Be2 {[%clk 0:02:14.2]} 14... Bc5 {[%clk 0:01:55.4]} 15. Kg2 {[%clk 0:02:06.8]}
15... Qe7 {[%clk 0:01:50.6]} 16. f4 {[%clk 0:02:05.7]} 16... Ned7 {[%clk
0:01:45.4]} 17. e5 {[%clk 0:02:04.9]} 17... Nd5 {[%clk 0:01:45.5]} 18. Nxd5
{[%clk 0:02:03.9]} 18... cxd5 {[%clk 0:01:46.4]} 19. Bd3 {[%clk 0:02:02.7]}
19... h6 {[%clk 0:01:45.8]} 20. Qe2 {[%clk 0:01:44.5]} 20... Rac8 {[%clk
0:01:45.7]} 21. Bd2 {[%clk 0:01:39.4]} 21... Bd4 {[%clk 0:01:45.6]} 22. Rab1
{[%clk 0:01:39.8]} 22... Nc5 {[%clk 0:01:44]} 23. Bf5 {[%clk 0:01:32]} 23... Rc7
{[%clk 0:01:36.9]} 24. Bb4 {[%clk 0:01:22.1]} 24... g6 {[%clk 0:01:27.6]} 25.
Bg4 {[%clk 0:01:15.4]} 25... h5 {[%clk 0:01:16.2]} 26. Bf3 {[%clk 0:01:14.7]}
26... Qd7 {[%clk 0:01:16.8]} 27. Rfd1 {[%clk 0:00:59.2]} 27... Ne6 {[%clk
0:01:12.5]} 28. Bxf8 {[%clk 0:00:51.5]} 28... Kxf8 {[%clk 0:01:13.4]} 29. Rbc1
{[%clk 0:00:35.5]} 29... h4 {[%clk 0:01:06]} 30. Rxc7 {[%clk 0:00:33.9]} 30...
Qxc7 {[%clk 0:01:06.4]} 31. Bxd5 {[%clk 0:00:28.2]} 31... Qc5 {[%clk 0:00:47.5]}
32. Bxe6 {[%clk 0:00:28.4]} 32... fxe6 {[%clk 0:00:48.4]} 33. Qe4 {[%clk
0:00:27.3]} 33... hxg3 {[%clk 0:00:40.5]} 34. Qxd4 {[%clk 0:00:25.9]} 34... Qc6+
{[%clk 0:00:39.4]} 35. Kxg3 {[%clk 0:00:25.1]} 35... Qc2 {[%clk 0:00:37.6]} 36.
Qd6+ {[%clk 0:00:24.3]} 36... Kg7 {[%clk 0:00:37.6]} 37. Qd7+ {[%clk 0:00:24.2]}
37... Kh6 {[%clk 0:00:38.1]} 38. Qd2 {[%clk 0:00:24.1]} 38... Qe4 {[%clk
0:00:33.6]} 39. f5+ {[%clk 0:00:24.1]} 39... g5 {[%clk 0:00:34.2]} 40. Rf1
{[%clk 0:00:21.3]} 40... Qxe5+ {[%clk 0:00:33.7]} 41. Kg2 {[%clk 0:00:22]} 41...
exf5 {[%clk 0:00:34.1]} 42. Qf2 {[%clk 0:00:21.5]} 42... f4 {[%clk 0:00:33.3]}
43. Qf3 {[%clk 0:00:21.7]} 43... Qxb2+ {[%clk 0:00:32.6]} 44. Rf2 {[%clk
0:00:22.4]} 44... Qb5 {[%clk 0:00:27.4]} 45. h4 {[%clk 0:00:22.3]} 45... a5
{[%clk 0:00:19]} 46. Qg4 {[%clk 0:00:21.6]} 46... Qd5+ {[%clk 0:00:17.9]} 47.
Kh2 {[%clk 0:00:21.8]} 47... Qd4 {[%clk 0:00:11]} 48. Qxg5+ {[%clk 0:00:21.9]}
48... Kh7 {[%clk 0:00:11.6]} 49. Qxf4 {[%clk 0:00:20.8]} 49... Qd5 {[%clk
0:00:11.4]} 50. Qf5+ {[%clk 0:00:20.8]} 50... Qxf5 {[%clk 0:00:11.5]} 51. Rxf5
{[%clk 0:00:21.7]} 1-0

[Event "Late-Titled-Tuesday-Blitz-February-06-2024"]
[Site "Chess.com"]
[Date "2024.02.06"]
[Round "2"]
[White "ccccvhhhj"]
[Black "Horokoskii"]
[Result "1-0"]
[WhiteElo "2458"]
[BlackElo "2145"]
[TimeControl "180+1"]
[EndTime "14:18:28 PST"]
[Termination "ccccvhhhj won on time"]

1. d4 {[%clk 0:03:00.9]} 1... Nf6 {[%clk 0:02:59.5]} 2. Bg5 {[%clk 0:02:59.4]}
2... Ne4 {[%clk 0:02:58.8]} 3. h4 {[%clk 0:03:00.1]} 3... h6 {[%clk 0:02:55.8]}
4. Bf4 {[%clk 0:02:59.7]} 4... c5 {[%clk 0:02:53.9]} 5. f3 {[%clk 0:02:56]} 5...
Nf6 {[%clk 0:02:53.9]} 6. d5 {[%clk 0:02:52.9]} 6... d6 {[%clk 0:02:53.3]} 7.
Nc3 {[%clk 0:02:50.1]} 7... Qa5 {[%clk 0:02:49.1]} 8. e4 {[%clk 0:02:49.7]} 8...
Nbd7 {[%clk 0:02:44.7]} 9. Bd3 {[%clk 0:02:44.5]} 9... Rb8 {[%clk 0:02:41.7]}
10. Nh3 {[%clk 0:02:40.9]} 10... b5 {[%clk 0:02:40.4]} 11. Qd2 {[%clk 0:02:27]}
11... c4 {[%clk 0:02:34.8]} 12. Be2 {[%clk 0:02:21.8]} 12... Nh5 {[%clk
0:02:20.2]} 13. Be3 {[%clk 0:02:13.4]} 13... Ng3 {[%clk 0:02:17.7]} 14. Rg1
{[%clk 0:02:00]} 14... Nxe2 {[%clk 0:02:17.3]} 15. Nxe2 {[%clk 0:02:00.9]} 15...
Qxd2+ {[%clk 0:02:09.7]} 16. Bxd2 {[%clk 0:02:01.8]} 16... g6 {[%clk 0:02:06.5]}
17. Bc3 {[%clk 0:02:01.2]} 17... Rg8 {[%clk 0:02:06.3]} 18. Nd4 {[%clk 0:02:00]}
18... a6 {[%clk 0:01:54.9]} 19. Nc6 {[%clk 0:02:00.2]} 19... Ra8 {[%clk
0:01:51.1]} 20. O-O-O {[%clk 0:01:57.5]} 20... Bb7 {[%clk 0:01:49.1]} 21. f4
{[%clk 0:01:50.6]} 21... Bg7 {[%clk 0:01:48.2]} 22. Nd4 {[%clk 0:01:37.9]} 22...
Rb8 {[%clk 0:01:41.6]} 23. Rge1 {[%clk 0:01:34.4]} 23... Nc5 {[%clk 0:01:33.9]}
24. e5 {[%clk 0:01:29.5]} 24... dxe5 {[%clk 0:01:28.8]} 25. fxe5 {[%clk
0:01:30.4]} 25... Bxd5 {[%clk 0:01:10.1]} 26. Nf4 {[%clk 0:01:29.3]} 26... Ba8
{[%clk 0:01:07.3]} 27. e6 {[%clk 0:01:28.8]} 27... Nxe6 {[%clk 0:00:56.3]} 28.
Ndxe6 {[%clk 0:01:24.6]} 28... fxe6 {[%clk 0:00:50.7]} 29. Nxe6 {[%clk
0:01:20.9]} 29... Bxc3 {[%clk 0:00:50.1]} 30. bxc3 {[%clk 0:01:11.7]} 30... Kf7
{[%clk 0:00:50.3]} 31. Rd2 {[%clk 0:01:04]} 31... g5 {[%clk 0:00:46.6]} 32. h5
{[%clk 0:01:00.9]} 32... Rgc8 {[%clk 0:00:36.4]} 33. Rf2+ {[%clk 0:00:54.8]}
33... Kg8 {[%clk 0:00:36.3]} 34. Nd4 {[%clk 0:00:51.7]} 34... Rf8 {[%clk
0:00:29.1]} 35. Rfe2 {[%clk 0:00:49.3]} 35... Rbe8 {[%clk 0:00:18.9]} 36. g4
{[%clk 0:00:35.7]} 36... Rf4 {[%clk 0:00:13.3]} 37. Nf5 {[%clk 0:00:35.3]} 37...
Rxf5 {[%clk 0:00:08.6]} 38. gxf5 {[%clk 0:00:35.6]} 38... Kf7 {[%clk 0:00:09.2]}
39. Re6 {[%clk 0:00:35]} 39... Bd5 {[%clk 0:00:08.5]} 40. Rxh6 {[%clk
0:00:32.5]} 40... Bf3 {[%clk 0:00:07.2]} 41. Rg6 {[%clk 0:00:24.5]} 41... Bxh5
{[%clk 0:00:05.6]} 42. Rxg5 {[%clk 0:00:25]} 42... Bf3 {[%clk 0:00:04.7]} 43.
Re6 {[%clk 0:00:21.7]} 43... Bd5 {[%clk 0:00:04.6]} 44. Rxa6 {[%clk 0:00:21.6]}
44... Rh8 {[%clk 0:00:02.1]} 45. Kb2 {[%clk 0:00:20.5]} 45... Rh1 {[%clk
0:00:02.5]} 46. f6 {[%clk 0:00:21]} 46... exf6 {[%clk 0:00:02.2]} 47. Rxd5
{[%clk 0:00:21.3]} 1-0